fUSD/lending_fUSD_20250112
["ID","MTS","AMOUNT","RATE_DAILY","PERIOD"]
[348592131,1736653840512,-3383.18,9.992e-05,2]
[348592132,1736653840521,-653.12,9.992e-05,2]
[348592133,1736653840531,-500.0,9.992e-05,2]
[348592134,1736653840540,-500.0,9.992e-05,2]
[348592135,1736653840549,-500.0,9.992e-05,2]
[348592136,1736653840559,-500.0,9.992e-05,2]
[348592137,1736653840568,-500.0,9.992e-05,2]
[348592138,1736653840578,-1941.46,9.992e-05,2]
[348592139,1736653840590,-500.0,9.992e-05,2]
[348592140,1736653840599,-1748.47,9.992e-05,2]
[348592141,1736653840609,-598.56,9.992e-05,2]
[348592142,1736653840618,-500.0,9.992e-05,2]
[348592143,1736653840627,-500.0,9.992e-05,2]
[348592144,1736653840636,-500.0,9.992e-05,2]
[348592145,1736653840645,-500.0,9.992e-05,2]
[348592146,1736653840655,-500.0,9.992e-05,2]
[348592147,1736653840664,-500.0,9.992e-05,2]
[348592148,1736653840673,-1074.91,9.992e-05,2]
[348592149,1736653840683,-500.0,9.992e-05,2]
[348592150,1736653840692,-1300.06,9.992e-05,2]
[348592151,1736653840701,-500.0,9.992e-05,2]
[348592152,1736653840710,-500.0,9.992e-05,2]
[348592153,1736653840719,-638.68,9.992e-05,2]
[348592154,1736653840728,-500.0,9.992e-05,2]
[348592155,1736653840737,-500.0,9.992e-05,2]
[348592156,1736653840746,-500.0,9.992e-05,2]
[348592157,1736653840755,-500.0,9.992e-05,2]
[348592158,1736653840765,-500.0,9.992e-05,2]
[348592159,1736653840774,-500.0,9.992e-05,2]
[348592160,1736653840783,-500.0,9.993e-05,2]
[348592161,1736653840792,-500.0,9.993e-05,2]
[348592162,1736653840852,-500.0,9.993e-05,2]
[348592163,1736653840861,-564.99,9.993e-05,2]
[348592164,1736653840870,-500.0,9.993e-05,2]
[348592165,1736653840879,-529.54,9.993e-05,2]
[348592166,1736653840888,-500.0,9.993e-05,2]
[348592167,1736653840897,-500.0,9.993e-05,2]
[348592168,1736653840906,-650.64,9.993e-05,2]
[348592169,1736653840914,-500.0,9.993e-05,2]
[348592170,1736653840923,-500.0,9.993e-05,2]
[348592171,1736653840932,-500.0,9.993e-05,2]
[348592172,1736653840941,-500.0,9.993e-05,2]
[348592173,1736653840951,-813.86,9.993e-05,2]
[348592174,1736653840962,-500.0,9.993e-05,2]
[348592175,1736653840973,-500.0,9.993e-05,2]
[348592176,1736653840984,-838.27,9.993e-05,2]
[348592177,1736653840993,-500.0,9.993e-05,2]
[348592178,1736653841005,-500.0,9.993e-05,2]
[348592179,1736653841014,-1373.39,9.993e-05,2]
[348592180,1736653841024,-500.0,9.993e-05,2]
[348592181,1736653841034,-513.95,9.993e-05,2]
[348592182,1736653841044,-500.0,9.993e-05,2]
[348592183,1736653841053,-1606.69,9.993e-05,2]
[348592184,1736653841062,-500.0,9.993e-05,2]
[348592185,1736653841071,-2268.73,9.993e-05,2]
[348592186,1736653841085,-833.47,9.993e-05,2]
[348592187,1736653841094,-5808.79,9.993e-05,2]
[348592188,1736653841103,-860.53,9.993e-05,2]
[348592189,1736653841112,-500.0,9.993e-05,2]
[348592190,1736653841122,-995.51,9.993e-05,2]
[348592191,1736653841133,-500.0,9.993e-05,2]
[348592192,1736653841142,-1242.75,9.993e-05,2]
[348592193,1736653841153,-1296.38,9.993e-05,2]
[348592194,1736653841162,-1090.34,9.993e-05,2]
[348592195,1736653841173,-644.19,9.993e-05,2]
[348592196,1736653841182,-3615.96,9.993e-05,2]
[348592197,1736653841193,-500.0,9.993e-05,2]
[348592198,1736653841204,-1346.97,9.993e-05,2]
[348592199,1736653841214,-619.84,9.993e-05,2]
[348592200,1736653841224,-546.79,9.993e-05,2]
[348592201,1736653841234,-1414.69,9.993e-05,2]
[348592202,1736653841243,-1648.71,9.993e-05,2]
[348592203,1736653841251,-702.43,9.993e-05,2]
[348592204,1736653841260,-1191.53,9.993e-05,2]
[348592205,1736653841270,-1816.16,9.993e-05,2]
[348592206,1736653841278,-2156.89,9.993e-05,2]
[348592207,1736653841287,-2128.92,9.993e-05,2]
[348592208,1736653841296,-869.06,9.993e-05,2]
[348592209,1736653841305,-793.7,9.993e-05,2]
[348592210,1736653841314,-500.0,9.993e-05,2]
[348592211,1736653841322,-731.43,9.993e-05,2]
[348592212,1736653841331,-1149.18,9.993e-05,2]
[348592213,1736653841340,-1273.11,9.993e-05,2]
[348592214,1736653841349,-1190.62,9.993e-05,2]
[348592215,1736653841358,-761.62,9.993e-05,2]
[348592216,1736653841368,-42.12677235,9.994e-05,2]
[348592217,1736653841378,-2000.0,9.994e-05,2]
[348592218,1736653841386,-200.0,9.994e-05,2]
[348592219,1736653841396,-500.0,9.994e-05,2]
[348592220,1736653841405,-500.0,9.994e-05,2]
[348592221,1736653841414,-955.72,9.994e-05,2]
[348592222,1736653841423,-1788.71,9.994e-05,2]
[348592223,1736653841432,-506.55638861,9.994e-05,2]
[348592224,1736653841441,-1000.0,9.994e-05,2]
[348592225,1736653841450,-716.19,9.994e-05,2]
[348592226,1736653841459,-500.0,9.994e-05,2]
[348592227,1736653841469,-500.50592156,9.994e-05,2]
[348592228,1736653841478,-2175.64,9.994e-05,2]
[348592229,1736653841488,-1450.34,9.994e-05,2]
[348592230,1736653841497,-609.36,9.998e-05,2]
[348592231,1736653841506,-500.0,9.998e-05,2]
[348592232,1736653841515,-784.3,9.998e-05,2]
[348592233,1736653841524,-1268.0,9.998e-05,2]
[348592234,1736653841533,-2017.477,9.998e-05,2]
[348592235,1736653841543,-568.789,9.998e-05,2]
[348592236,1736653841552,-150.716,9.998e-05,2]
[348592237,1736653841561,-764.13,9.998e-05,2]
[348592238,1736653841570,-1104.0,9.998e-05,2]
[348592239,1736653841579,-1866.631,9.998e-05,2]
[348592240,1736653841588,-915.0,9.998e-05,2]
[348592241,1736653841597,-820.0,9.998e-05,2]
[348592242,1736653841606,-1261.127,9.998e-05,2]
[348592243,1736653841616,-2944.0,9.998e-05,2]
[348592244,1736653841625,-539.243,9.998e-05,2]
[348592245,1736653841634,-3985.416,9.998e-05,2]
[348592246,1736653841643,-1174.0,9.998e-05,2]
[348592247,1736653841652,-150.0,9.998e-05,2]
[348592248,1736653841661,-3896.0,9.998e-05,2]
[348592249,1736653841670,-150.0,9.998e-05,2]
[348592250,1736653841679,-200.46922417,9.999e-05,3]
[348592251,1736653841687,-661.8,9.999e-05,2]
[348592252,1736653841696,-1564.64,9.999e-05,2]
[348592253,1736653841705,-2662.37,9.999e-05,2]
[348592254,1736653841714,-1352.1,9.999e-05,2]
[348592255,1736653841723,-1074.45,9.999e-05,2]
[348592256,1736653841731,-1164.262414,9.999e-05,2]
[348592257,1736653841740,-1216.928608,9.999e-05,2]
[348592258,1736653841749,-158.280976,9.999e-05,2]
[348592259,1736653841758,-156.080894,9.999e-05,2]
[348592260,1736653841767,-3073.06,9.999e-05,2]
[348592261,1736653841775,-1086.63,9.999e-05,2]
[348592262,1736653841784,-546.92,9.999e-05,2]
[348592263,1736653841793,-500.0,9.999e-05,2]
[348592264,1736653841802,-500.0,9.999e-05,2]
[348592265,1736653841811,-3316.46,9.999e-05,2]
[348592266,1736653841820,-500.0,9.999e-05,2]
[348592267,1736653841829,-500.0,9.999e-05,2]
[348592268,1736653841839,-1029.4,9.999e-05,2]
[348592269,1736653841849,-500.0,9.999e-05,2]
[348592270,1736653841858,-500.0,9.999e-05,2]
[348592271,1736653841867,-500.0,9.999e-05,2]
[348592272,1736653841876,-1090.38,9.999e-05,2]
[348592273,1736653841885,-1142.44,9.999e-05,2]
[348592274,1736653841895,-1436.57,9.999e-05,2]
[348592275,1736653841904,-929.11,9.999e-05,2]
[348592276,1736653841913,-2434.48,9.999e-05,2]
[348592277,1736653841922,-1418.56,9.999e-05,2]
[348592278,1736653841931,-3565.61,9.999e-05,2]
[348592279,1736653841940,-2490.97,9.999e-05,2]
[348592280,1736653841950,-500.0,9.999e-05,2]
[348592281,1736653841959,-500.0,9.999e-05,2]
[348592282,1736653841968,-500.0,9.999e-05,2]
[348592283,1736653841977,-440.54329144,9.999e-05,2]
[348592284,1736653841987,-527.09266055,9.999e-05,2]
[348592285,1736653841996,-500.0,9.999e-05,2]
[348592286,1736653842009,-164.56214103,9.999e-05,2]
[348592287,1736653842018,-583.0,0.0001,2]
[348592288,1736653842027,-158.7872521,0.0001,2]
[348592289,1736653842036,-735190.96452755,0.0001,2]
[348592290,1736653843113,-429.8761991,9.992e-05,2]
[348592291,1736653843124,-213.6738009,9.992e-05,2]
[348592292,1736653843134,-1048.75151854,9.998e-05,2]
[348592293,1736653843145,-8578.24848146,9.998e-05,2]
[348592294,1736653843154,-500.0,9.999e-05,2]
[348592295,1736653843163,-473.71668933,0.0001,2]
[348592296,1736653843175,-5462.24845647,0.0001,2]
[348592297,1736653843186,-8940.77294004,0.0001,2]
[348592298,1736653843197,-2895.42788783,0.0001,2]
[348592300,1736653843208,-1572.82199258,0.0001,2]
[348592302,1736653843220,-238272.50579697,0.0001,2]
[348592305,1736653843344,-467.52,0.0001,2]
[348592306,1736653843356,-467841.92077562,0.0001,2]
[348592307,1736653843366,-240888.83689412,0.0001,2]
[348592308,1736653843377,-2013.80338759,0.0001,2]
[348592309,1736653843388,-6938.98084217,0.0001,2]
[348592320,1736653843851,-65353.13134652,0.0001,2]
[348592321,1736653843860,-137047.74152228,0.0001,2]
[348592322,1736653843870,-5238.3581036,0.0001,2]
[348592323,1736653843879,-655671.91873609,0.0001,2]
[348592324,1736653843888,-1000.0,0.0001,2]
[348592325,1736653843898,-139487.55146349,0.0001,2]
[348592326,1736653843907,-540132.93874996,0.0001,2]
[348592327,1736653843917,-5032.62795343,0.0001,2]
[348592328,1736653843926,-854923.79514973,0.0001,2]
[348592329,1736653843935,-502.8245635,0.0001,2]
[348592330,1736653843944,-250.0,0.0001,2]
[348592331,1736653843955,-250.0,0.0001,2]
[348592332,1736653843964,-250.0,0.0001,2]
[348592333,1736653843974,-250.0,0.0001,2]
[348592334,1736653843983,-250.0,0.0001,2]
[348592335,1736653843993,-250.0,0.0001,2]
[348592336,1736653844005,-250.0,0.0001,2]
[348592337,1736653844014,-250.0,0.0001,2]
[348592338,1736653844023,-250.0,0.0001,2]
[348592339,1736653844033,-250.0,0.0001,2]
[348592340,1736653844043,-250.0,0.0001,2]
[348592341,1736653844052,-477.0,0.0001,2]
[348592342,1736653844062,-385615.27693042,0.0001,2]
[348592343,1736653844074,-1961.93967974,0.0001,2]
[348592344,1736653844087,-1804.92310784,0.0001,2]
[348592345,1736653844101,-1963.29169128,0.0001,2]
[348592346,1736653844285,-642.97607776,0.0001,2]
[348592347,1736653844296,-597.0,0.0001,2]
[348592348,1736653844307,-310.67876689,0.0001,2]
[348592349,1736653844318,-5398.1706313,0.0001,2]
[348592350,1736653844336,-1592.36763959,0.0001,2]
[348592351,1736653844793,-150.0,9.998e-05,2]
[348592352,1736653844802,-9161.04221422,0.0001,2]
[348592353,1736653844813,-27187.52882515,0.0001,2]
[348592377,1736653846528,-432.00902886,9.991e-05,2]
[348592378,1736653846539,-67.99097114,9.991e-05,2]
[348592379,1736653846549,-1207.60843816,9.991e-05,2]
[348592384,1736653846777,-251.10073731,9.991e-05,2]
[348592385,1736653846789,-4707.01082453,9.991e-05,2]
[348592386,1736653846798,-500.0,9.992e-05,2]
[348592387,1736653846807,-515.02,9.993e-05,2]
[348592388,1736653846816,-13690.63802506,0.0001,2]
[348592389,1736653896484,338.0,0.0002,120]
[348592390,1736654094901,1191.55,8.219e-05,2]
[348592418,1736654977346,1197.63,8.219e-05,2]
[348592424,1736655031399,-250.0,9.025e-05,2]
[348592425,1736655031409,-250.0,9.048e-05,2]
[348592426,1736655031419,-755.4,9.055e-05,2]
[348592427,1736655031428,-227.2,9.059e-05,2]
[348592428,1736655031439,-88.44,9.059e-05,2]
[348592429,1736655031448,-1231.3980045,9.124e-05,2]
[348592430,1736655031607,-429.21021427,9.124e-05,2]
[348592431,1736655031663,-1597.44991623,9.124e-05,2]
[348592432,1736655031717,-20641.941865,9.124e-05,2]
[348592433,1736655031727,-1000.0,9.168e-05,2]
[348592434,1736655031736,-150.0,9.222e-05,2]
[348592435,1736655031745,-220.7974283,9.222e-05,2]
[348592436,1736655031754,-290.35514681,9.222e-05,2]
[348592437,1736655031763,-168.14,9.31e-05,2]
[348592438,1736655031772,-980.06,9.478e-05,2]
[348592439,1736655031781,-150.0,9.478e-05,2]
[348592440,1736655031790,-150.0,9.478e-05,2]
[348592441,1736655031800,-150.0,9.578e-05,2]
[348592442,1736655031809,-150.62,9.578e-05,2]
[348592443,1736655031818,-203.39,9.578e-05,2]
[348592444,1736655031827,-980.06,9.578e-05,2]
[348592445,1736655031837,-3896.0,9.821e-05,2]
[348592446,1736655031846,-150.0,9.821e-05,2]
[348592447,1736655031855,-9627.0,9.821e-05,2]
[348592448,1736655031864,-2133.7776439,9.921e-05,2]
[348592449,1736655031873,-2133.7776439,9.95e-05,2]
[348592450,1736655031882,-2133.7776439,9.979e-05,2]
[348592451,1736655031892,-2087.987,9.99e-05,2]
[348592452,1736655031901,-175.408,9.99e-05,2]
[348592453,1736655031910,-150.0,9.99e-05,2]
[348592454,1736655031919,-646.95,9.991e-05,2]
[348592455,1736655031928,-500.0,9.991e-05,2]
[348592456,1736655031937,-640.01,9.991e-05,2]
[348592457,1736655031946,-514.7,9.991e-05,2]
[348592458,1736655031956,-500.0,9.991e-05,2]
[348592459,1736655031965,-536.19,9.991e-05,2]
[348592460,1736655031974,-613.48,9.991e-05,2]
[348592461,1736655031984,-521.98,9.991e-05,2]
[348592462,1736655031993,-500.0,9.991e-05,2]
[348592463,1736655032002,-308.00231147,9.991e-05,2]
[348592464,1736655032012,-511.27321395,9.991e-05,2]
[348592465,1736655032021,-500.0,9.991e-05,2]
[348592466,1736655032030,-500.0,9.991e-05,2]
[348592467,1736655032040,-500.0,9.991e-05,2]
[348592468,1736655032049,-500.0,9.991e-05,2]
[348592469,1736655032058,-500.0,9.991e-05,2]
[348592470,1736655032067,-500.0,9.991e-05,2]
[348592471,1736655032075,-500.0,9.991e-05,2]
[348592472,1736655032085,-500.0,9.991e-05,2]
[348592473,1736655032094,-500.0,9.991e-05,2]
[348592474,1736655032103,-937.63,9.991e-05,2]
[348592475,1736655032112,-500.0,9.991e-05,2]
[348592476,1736655032122,-538.53,9.991e-05,2]
[348592477,1736655032131,-500.0,9.991e-05,2]
[348592478,1736655032139,-671.94,9.991e-05,2]
[348592479,1736655032149,-500.0,9.991e-05,2]
[348592480,1736655032158,-500.0,9.991e-05,2]
[348592481,1736655032167,-500.0,9.991e-05,2]
[348592482,1736655032176,-777.35,9.991e-05,2]
[348592483,1736655032185,-500.0,9.991e-05,2]
[348592484,1736655032194,-2432.67,9.991e-05,2]
[348592485,1736655032203,-500.0,9.991e-05,2]
[348592486,1736655032212,-500.0,9.991e-05,2]
[348592487,1736655032222,-547.83,9.991e-05,2]
[348592488,1736655032231,-500.0,9.991e-05,2]
[348592489,1736655032240,-596.57,9.991e-05,2]
[348592490,1736655032250,-1421.46,9.991e-05,2]
[348592491,1736655032259,-500.0,9.991e-05,2]
[348592492,1736655032268,-614.27,9.991e-05,2]
[348592493,1736655032277,-537.19,9.991e-05,2]
[348592494,1736655032285,-500.0,9.991e-05,2]
[348592495,1736655032295,-500.0,9.991e-05,2]
[348592496,1736655032304,-500.0,9.991e-05,2]
[348592497,1736655032314,-3437.88,9.991e-05,2]
[348592498,1736655032323,-500.0,9.991e-05,2]
[348592499,1736655032332,-509.30120251,9.991e-05,2]
[348592500,1736655032341,-500.0,9.991e-05,2]
[348592501,1736655032350,-2522.47,9.991e-05,2]
[348592502,1736655032359,-500.0,9.991e-05,2]
[348592503,1736655032369,-661.52,9.991e-05,2]
[348592504,1736655032378,-500.0,9.991e-05,2]
[348592505,1736655032387,-547.41,9.991e-05,2]
[348592506,1736655032396,-500.0,9.991e-05,2]
[348592507,1736655032406,-500.0,9.991e-05,2]
[348592508,1736655032414,-500.0,9.991e-05,2]
[348592509,1736655032424,-500.0,9.991e-05,2]
[348592510,1736655032433,-637.87,9.991e-05,2]
[348592511,1736655032443,-584.15,9.991e-05,2]
[348592512,1736655032452,-500.0,9.991e-05,2]
[348592513,1736655032462,-717.66,9.991e-05,2]
[348592514,1736655032471,-828.64,9.991e-05,2]
[348592515,1736655032480,-1214.32,9.991e-05,2]
[348592516,1736655032489,-500.0,9.991e-05,2]
[348592517,1736655032499,-500.0,9.991e-05,2]
[348592518,1736655032508,-500.0,9.991e-05,2]
[348592519,1736655032517,-500.0,9.991e-05,2]
[348592520,1736655032526,-500.0,9.991e-05,2]
[348592521,1736655032535,-500.0,9.991e-05,2]
[348592522,1736655032545,-500.0,9.991e-05,2]
[348592523,1736655032554,-500.0,9.991e-05,2]
[348592524,1736655032564,-816.2,9.991e-05,2]
[348592525,1736655032576,-735.25,9.991e-05,2]
[348592526,1736655032585,-890.44,9.991e-05,2]
[348592527,1736655032594,-867.64,9.991e-05,2]
[348592528,1736655032604,-500.0,9.991e-05,2]
[348592529,1736655032614,-506.62,9.991e-05,2]
[348592530,1736655032623,-500.0,9.991e-05,2]
[348592531,1736655032632,-500.0,9.991e-05,2]
[348592532,1736655032642,-500.0,9.991e-05,2]
[348592533,1736655032651,-602.03,9.991e-05,2]
[348592534,1736655032661,-500.0,9.991e-05,2]
[348592535,1736655032669,-500.0,9.991e-05,2]
[348592536,1736655032679,-500.0,9.992e-05,2]
[348592537,1736655032688,-500.0,9.992e-05,2]
[348592538,1736655032697,-500.0,9.992e-05,2]
[348592539,1736655032706,-500.0,9.992e-05,2]
[348592540,1736655032715,-500.0,9.992e-05,2]
[348592541,1736655032724,-504.89048461,9.992e-05,2]
[348592542,1736655032734,-500.0,9.992e-05,2]
[348592543,1736655032743,-500.0,9.992e-05,2]
[348592544,1736655032752,-500.0,9.992e-05,2]
[348592545,1736655032762,-500.0,9.992e-05,2]
[348592546,1736655032772,-504.22967894,9.992e-05,2]
[348592547,1736655032781,-500.0,9.992e-05,2]
[348592548,1736655032790,-503.97492324,9.992e-05,2]
[348592549,1736655032800,-500.0,9.992e-05,2]
[348592550,1736655032809,-506.66404553,9.992e-05,2]
[348592551,1736655032818,-500.0,9.992e-05,2]
[348592552,1736655032828,-500.0,9.992e-05,2]
[348592553,1736655032837,-503.73567147,9.992e-05,2]
[348592554,1736655032847,-500.0,9.992e-05,2]
[348592555,1736655032856,-500.0,9.992e-05,2]
[348592556,1736655032866,-500.0,9.992e-05,2]
[348592557,1736655032875,-503.11483432,9.992e-05,2]
[348592558,1736655032884,-517.32487157,9.992e-05,2]
[348592559,1736655032894,-500.0,9.992e-05,2]
[348592560,1736655032903,-503.75090582,9.992e-05,2]
[348592561,1736655032913,-500.0,9.992e-05,2]
[348592562,1736655032923,-500.0,9.992e-05,2]
[348592563,1736655032933,-500.0,9.992e-05,2]
[348592564,1736655032942,-500.0,9.992e-05,2]
[348592565,1736655032951,-185.99507226,9.992e-05,2]
[348592566,1736655032960,-503.27471842,9.992e-05,2]
[348592567,1736655032970,-508.59993356,9.992e-05,2]
[348592568,1736655032981,-520.44258364,9.992e-05,2]
[348592569,1736655032990,-506.33880435,9.992e-05,2]
[348592570,1736655033000,-500.0,9.992e-05,2]
[348592571,1736655033009,-500.0,9.992e-05,2]
[348592572,1736655033018,-500.0,9.992e-05,2]
[348592573,1736655033027,-504.37696618,9.992e-05,2]
[348592574,1736655033037,-500.0,9.992e-05,2]
[348592575,1736655033046,-500.0,9.992e-05,2]
[348592576,1736655033056,-502.39130021,9.992e-05,2]
[348592577,1736655033065,-449.23473089,9.992e-05,2]
[348592578,1736655033075,-504.04234623,9.992e-05,2]
[348592579,1736655033084,-500.0,9.992e-05,2]
[348592580,1736655033094,-503.0941113,9.992e-05,2]
[348592581,1736655033103,-500.0,9.992e-05,2]
[348592582,1736655033112,-500.0,9.992e-05,2]
[348592583,1736655033122,-500.0,9.992e-05,2]
[348592584,1736655033131,-504.32692744,9.992e-05,2]
[348592585,1736655033140,-500.0,9.992e-05,2]
[348592586,1736655033150,-504.0785582,9.992e-05,2]
[348592587,1736655033159,-160.7445331,9.992e-05,2]
[348592588,1736655033168,-500.0,9.992e-05,2]
[348592589,1736655033177,-503.49791403,9.992e-05,2]
[348592590,1736655033187,-500.0,9.992e-05,2]
[348592591,1736655033196,-500.0,9.992e-05,2]
[348592592,1736655033205,-510.74939006,9.992e-05,2]
[348592593,1736655033215,-508.0648545,9.992e-05,2]
[348592594,1736655033224,-502.24401069,9.992e-05,2]
[348592595,1736655033233,-500.0,9.992e-05,2]
[348592596,1736655033242,-500.0,9.992e-05,2]
[348592597,1736655033252,-503.90853002,9.992e-05,2]
[348592598,1736655033261,-547.86790854,9.992e-05,2]
[348592599,1736655033270,-500.0,9.992e-05,2]
[348592600,1736655033280,-380.20391017,9.992e-05,2]
[348592601,1736655033290,-500.0,9.992e-05,2]
[348592602,1736655033298,-500.0,9.992e-05,2]
[348592603,1736655033307,-500.0,9.992e-05,2]
[348592604,1736655033317,-500.0,9.992e-05,2]
[348592605,1736655033326,-500.0,9.992e-05,2]
[348592606,1736655033335,-505.99151233,9.992e-05,2]
[348592607,1736655033344,-500.0,9.992e-05,2]
[348592608,1736655033355,-500.0,9.992e-05,2]
[348592609,1736655033365,-500.0,9.992e-05,2]
[348592610,1736655033374,-500.0,9.992e-05,2]
[348592611,1736655033383,-500.0,9.992e-05,2]
[348592612,1736655033393,-392.62649858,9.992e-05,2]
[348592613,1736655033402,-500.0,9.992e-05,2]
[348592614,1736655033411,-506.7393157,9.992e-05,2]
[348592615,1736655033421,-500.0,9.992e-05,2]
[348592616,1736655033431,-500.0,9.992e-05,2]
[348592617,1736655033443,-500.0,9.992e-05,2]
[348592618,1736655033453,-500.0,9.992e-05,2]
[348592619,1736655033462,-500.0,9.992e-05,2]
[348592620,1736655033474,-170.56918889,9.992e-05,2]
[348592621,1736655033483,-638.9,9.992e-05,2]
[348592622,1736655033493,-500.0,9.992e-05,2]
[348592623,1736655033502,-238.5058701,9.992e-05,2]
[348592624,1736655033511,-500.0,9.992e-05,2]
[348592625,1736655033520,-500.0,9.992e-05,2]
[348592626,1736655033529,-500.0,9.992e-05,2]
[348592627,1736655033539,-500.0,9.992e-05,2]
[348592628,1736655033549,-228.40837951,9.992e-05,2]
[348592629,1736655033558,-500.0,9.992e-05,2]
[348592630,1736655033773,-572.24,9.992e-05,2]
[348592631,1736655033797,-286.43433911,9.992e-05,2]
[348592632,1736655033806,-500.0,9.992e-05,2]
[348592633,1736655033816,-500.0,9.992e-05,2]
[348592634,1736655033825,-500.0,9.992e-05,2]
[348592635,1736655033835,-542.79,9.992e-05,2]
[348592636,1736655033844,-500.0,9.992e-05,2]
[348592637,1736655033853,-428.08623562,9.992e-05,2]
[348592638,1736655033863,-500.0,9.992e-05,2]
[348592639,1736655033873,-500.0,9.992e-05,2]
[348592640,1736655033882,-500.0,9.992e-05,2]
[348592641,1736655033892,-500.0,9.992e-05,2]
[348592642,1736655033901,-500.0,9.992e-05,2]
[348592643,1736655033910,-500.0,9.992e-05,2]
[348592644,1736655033919,-657.88,9.992e-05,2]
[348592645,1736655033928,-505.79052929,9.992e-05,2]
[348592646,1736655033937,-500.0,9.992e-05,2]
[348592647,1736655033946,-500.0,9.992e-05,2]
[348592648,1736655033956,-500.0,9.992e-05,2]
[348592649,1736655033966,-510.09155304,9.992e-05,2]
[348592650,1736655033975,-500.0,9.992e-05,2]
[348592651,1736655033984,-500.0,9.992e-05,2]
[348592652,1736655033993,-500.0,9.992e-05,2]
[348592653,1736655034002,-500.0,9.992e-05,2]
[348592654,1736655034011,-504.07975324,9.992e-05,2]
[348592655,1736655034021,-500.0,9.992e-05,2]
[348592656,1736655034031,-500.0,9.992e-05,2]
[348592657,1736655034039,-779.95,9.992e-05,2]
[348592658,1736655034049,-500.0,9.992e-05,2]
[348592659,1736655034058,-500.0,9.992e-05,2]
[348592660,1736655034068,-696.55,9.992e-05,2]
[348592661,1736655034077,-510.63990879,9.992e-05,2]
[348592662,1736655034087,-503.48320087,9.992e-05,2]
[348592663,1736655034095,-500.0,9.992e-05,2]
[348592664,1736655034105,-503.42061907,9.992e-05,2]
[348592665,1736655034114,-803.34,9.992e-05,2]
[348592666,1736655034123,-504.08284295,9.992e-05,2]
[348592667,1736655034132,-500.0,9.992e-05,2]
[348592668,1736655034143,-554.75957725,9.992e-05,2]
[348592669,1736655034152,-500.0,9.992e-05,2]
[348592670,1736655034161,-500.0,9.992e-05,2]
[348592671,1736655034170,-505.38869247,9.992e-05,2]
[348592672,1736655034179,-500.0,9.992e-05,2]
[348592673,1736655034188,-500.0,9.992e-05,2]
[348592674,1736655034197,-500.0,9.992e-05,2]
[348592675,1736655034207,-540.09086533,9.992e-05,2]
[348592676,1736655034216,-500.0,9.992e-05,2]
[348592677,1736655034225,-500.0,9.992e-05,2]
[348592678,1736655034234,-500.0,9.992e-05,2]
[348592679,1736655034244,-503.47968925,9.992e-05,2]
[348592680,1736655034253,-500.0,9.992e-05,2]
[348592681,1736655034264,-500.0,9.992e-05,2]
[348592682,1736655034273,-500.0,9.992e-05,2]
[348592683,1736655034282,-500.0,9.992e-05,2]
[348592684,1736655034291,-1375.93,9.992e-05,2]
[348592685,1736655034300,-1075.52,9.992e-05,2]
[348592686,1736655034309,-1132.306731,9.992e-05,2]
[348592687,1736655034319,-1177.67,9.992e-05,2]
[348592688,1736655034328,-833.24,9.992e-05,2]
[348592689,1736655034338,-1084.484231,9.992e-05,2]
[348592690,1736655034347,-832.85,9.992e-05,2]
[348592691,1736655034356,-3092.29,9.992e-05,2]
[348592692,1736655034366,-620.24,9.992e-05,2]
[348592693,1736655034376,-1141.01,9.992e-05,2]
[348592694,1736655034385,-1476.07,9.992e-05,2]
[348592695,1736655034394,-1088.04,9.992e-05,2]
[348592696,1736655034403,-500.0,9.992e-05,2]
[348592697,1736655034413,-1294.71,9.992e-05,2]
[348592698,1736655034422,-2234.23,9.992e-05,2]
[348592699,1736655034432,-422.86014994,9.992e-05,2]
[348592700,1736655034441,-2608.01,9.992e-05,2]
[348592701,1736655034450,-555.33,9.992e-05,2]
[348592702,1736655034460,-1751.15,9.992e-05,2]
[348592703,1736655034469,-1539.74,9.992e-05,2]